[Event "DVM U10 2024"]
[Site "Duesseldorf"]
[Date "2024.12.28"]
[Round "6"]
[White "Riazi, Dominik"]
[Black "Fabritius, Wolf"]
[Result "1/2-1/2"]
[ECO "C02"]
[WhiteElo "1602"]
[BlackElo "1405"]
[Annotator "NA RC"]
[PlyCount "103"]
[EventDate "2024.12.23"]
[EventType "team-tourn"]
[EventRounds "7"]
[EventCountry "GER"]
[SourceTitle "playchess.com"]
[Source "ChessBase"]
[SourceQuality "1"]
[TimeControl "3300+5"]

1. e4 {[%emt 0:00:02]} e6 {[%emt 0:00:05]} 2. d4 {[%emt 0:00:14]} d5 {[%emt 0:00:08]} 3. e5 {[%emt 0:00:03]} c5 {[%emt 0:00:06]} 4. c3 {[%emt 0:00:03]} Bd7 {[%emt 0:00:05]} 5. Be2 {[%emt 0:00:30]} Qb6 {[%emt 0:00:11]} 6. Nf3 {[%emt 0:00:07]} Bb5 {[%emt 0:00:11]} 7. O-O {[%emt 0:01:43]} Bxe2 {[%emt 0:00:23]} 8. Qxe2 {[%emt 0:00:09]} cxd4 {[%emt 0:00:12]} 9. cxd4 {[%emt 0:00:17]} Nc6 {[%emt 0:00:18]} 10. Be3 {[%emt 0:01:48]} Nge7 {[%emt 0:00:12]} 11. Nc3 {[%emt 0:01:44]} Nf5 {[%emt 0:00:41]} 12. Rad1 {[%emt 0:03:14]} Bb4 {[%emt 0:00:25]} 13. Rc1 {[%emt 0:07:23]} O-O {[%emt 0:01:08]} 14. Rfd1 {[%emt 0:01:14]} Rac8 {[%emt 0:01:18]} 15. a3 {[%emt 0:01:06]} Bxc3 {[%emt 0:00:47]} 16. bxc3 {[%emt 0:00:14]} a5 {[%emt 0:01:59]} 17. Rb1 {[%emt 0:04:05]} Qa7 {[%emt 0:00:48]} 18. Qb5 {[%emt 0:02:07]} Rc7 {[%emt 0:00:56]} 19. a4 {[%emt 0:02:44]} Rfc8 {[%emt 0:02:55]} 20. Bd2 {[%emt 0:01:55]} h6 {[%emt 0:01:12]} 21. Bc1 {[%emt 0:02:23]} Qa8 {[%emt 0:09:14]} 22. Qb3 {[%emt 0:03:54]} Qa6 {[%emt 0:02:29]} 23. Ba3 {[%emt 0:01:31]} Na7 {[%emt 0:01:32]} 24. Bc5 {[%emt 0:01:26]} Rd7 {[%emt 0:04:12]} 25. Qa2 {[%emt 0:02:18]} Rb8 {[%emt 0:00:59]} 26. Rb6 {[%emt 0:02:06]} Qc4 {[%emt 0:01:06]} 27. Qxc4 {[%emt 0:03:04]} dxc4 {[%emt 0:00:28]} 28. Rdb1 {[%emt 0:01:27]} Nc8 {[%emt 0:00:59]} 29. R6b5 {[%emt 0:00:46]} Nfe7 {[%emt 0:03:21]} 30. Bxe7 {[%emt 0:00:29]} Rxe7 {[%emt 0:00:05]} 31. Rxa5 {[%emt 0:00:16]} b6 {[%emt 0:00:22]} 32. Rab5 {[%emt 0:00:24]} Ra8 {[%emt 0:00:28]} 33. R5b4 {[%emt 0:00:26]} Rea7 {[%emt 0:00:38]} 34. Rxc4 {[%emt 0:00:37]} Rxa4 {[%emt 0:00:26]} 35. Rxa4 {[%emt 0:00:32]} Rxa4 {[%emt 0:00:06]} 36. Rc1 {[%emt 0:00:07]} b5 {[%emt 0:00:46]} 37. h3 {[%emt 0:00:15]} Rc4 {[%emt 0:01:38]} 38. Nd2 {[%emt 0:00:17]} Rc7 {[%emt 0:00:11]} 39. c4 {[%emt 0:00:18]} Nb6 {[%emt 0:01:24]} 40. c5 {[%emt 0:00:15]} Nd5 {[%emt 0:00:10]} 41. Rb1 {[%emt 0:00:17]} b4 {[%emt 0:00:46]} 42. Nc4 {[%emt 0:00:13]} Kh7 {[%emt 0:00:50]} 43. Ne3 {[%emt 0:00:03]} Kg6 {[%emt 0:00:56]} 44. Nc2 {[%emt 0:00:15]} Rb7 {[%emt 0:00:59]} 45. Kf1 {[%emt 0:00:15]} Kf5 {[%emt 0:00:19]} 46. Ke1 {[%emt 0:00:18]} Ke4 {[%emt 0:00:27]} 47. Kd2 {[%emt 0:00:03]} g5 {[%emt 0:02:12]} 48. Rb3 {[%emt 0:01:16]} h5 {[%emt 0:00:36]} 49. c6 {[%emt 0:01:10]} Rc7 {[%emt 0:00:33]} 50. Nxb4 {[%emt 0:00:04]} Nxb4 {[%emt 0:00:11]} 51. Rxb4 {[%emt 0:00:02]} Rxc6 {[%emt 0:00:14]} 52. Rb7 {[%emt 0:00:07]} 1/2-1/2

[Event "DVM U10 2024"]
[Site "Duesseldorf"]
[Date "2024.12.28"]
[Round "6"]
[White "von Flottwell, Lionel"]
[Black "Liu, Jonas"]
[Result "0-1"]
[ECO "B22"]
[WhiteElo "1597"]
[BlackElo "1690"]
[Annotator "NA RC"]
[PlyCount "66"]
[EventDate "2024.12.23"]
[EventType "team-tourn"]
[EventRounds "7"]
[EventCountry "GER"]
[SourceTitle "playchess.com"]
[Source "ChessBase"]
[SourceQuality "1"]
[TimeControl "3300+5"]

1. e4 {[%emt 0:00:06]} c5 {[%emt 0:00:13]} 2. Nf3 {[%emt 0:00:17]} Nc6 {[%emt 0:00:22]} 3. c3 {[%emt 0:00:24]} Nf6 {[%emt 0:00:40]} 4. e5 {[%emt 0:00:34]} Nd5 {[%emt 0:00:35]} 5. d4 {[%emt 0:00:41]} cxd4 {[%emt 0:00:21]} 6. cxd4 {[%emt 0:00:12]} d6 {[%emt 0:00:36]} 7. Be2 {[%emt 0:06:54]} dxe5 {[%emt 0:01:18]} 8. dxe5 {[%emt 0:00:33]} e6 {[%emt 0:00:33]} 9. O-O {[%emt 0:01:16]} Be7 {[%emt 0:01:13]} 10. a3 {[%emt 0:03:16]} O-O {[%emt 0:01:12]} 11. Bd2 {[%emt 0:07:43]} b6 {[%emt 0:01:10]} 12. Nc3 {[%emt 0:01:00]} Bb7 {[%emt 0:00:29]} 13. Bd3 {[%emt 0:06:47]} Qd7 {[%emt 0:05:31]} 14. Ne1 {[%emt 0:07:35]} Nxe5 {[%emt 0:01:43]} 15. Bxh7+ {[%emt 0:01:48]} Kxh7 {[%emt 0:01:04]} 16. Qh5+ {[%emt 0:00:14]} Kg8 {[%emt 0:00:05]} 17. Qxe5 {[%emt 0:00:35]} Bf6 {[%emt 0:01:20]} 18. Qg3 {[%emt 0:01:09]} Ba6 {[%emt 0:00:55]} 19. Ne4 {[%emt 0:11:43]} Bxf1 {[%emt 0:01:52]} 20. Kxf1 {[%emt 0:01:27]} Qb5+ {[%emt 0:01:55]} 21. Kg1 {[%emt 0:00:06]} Qxb2 {[%emt 0:00:54]} 22. Nxf6+ {[%emt 0:00:51]} Qxf6 {[%emt 0:00:37]} 23. Rd1 {[%emt 0:00:09]} b5 {[%emt 0:01:42]} 24. Nf3 {[%emt 0:00:07]} Nc3 {[%emt 0:00:59]} 25. Re1 {[%emt 0:00:42]} a5 {[%emt 0:02:34]} 26. Ne5 {[%emt 0:00:22]} Rfc8 {[%emt 0:01:03]} 27. Bxc3 {[%emt 0:00:14]} Ra7 {[%emt 0:02:18]} 28. Bd2 {[%emt 0:00:15]} Rac7 {[%emt 0:02:16]} 29. h4 {[%emt 0:00:03]} Qf5 {[%emt 0:01:35]} 30. Bh6 {[%emt 0:00:14]} g6 {[%emt 0:01:11]} 31. Re3 {[%emt 0:00:06]} Rc1+ {[%emt 0:00:55]} 32. Kh2 {[%emt 0:00:01]} Qh5 {[%emt 0:04:40]} 33. Qf4 {[%emt 0:00:11]} R8c7 {[%emt 0:01:35]} 0-1

[Event "DVM U10 2024"]
[Site "Duesseldorf"]
[Date "2024.12.28"]
[Round "6"]
[White "Marx, Jakob"]
[Black "Brucker, Oscar"]
[Result "1-0"]
[ECO "C42"]
[WhiteElo "1591"]
[BlackElo "1291"]
[Annotator "NA RC"]
[PlyCount "63"]
[EventDate "2024.12.23"]
[EventType "team-tourn"]
[EventRounds "7"]
[EventCountry "GER"]
[SourceTitle "playchess.com"]
[Source "ChessBase"]
[SourceQuality "1"]
[TimeControl "3300+5"]

1. e4 {[%emt 0:00:04]} e5 {[%emt 0:00:04]} 2. Bc4 {[%emt 0:00:04]} Nf6 {[%emt 0:00:17]} 3. Nf3 {[%emt 0:00:07]} Bc5 {[%emt 0:01:37]} 4. Nxe5 {[%emt 0:00:10]} O-O {[%emt 0:00:12]} 5. d4 {[%emt 0:00:11]} Bb4+ {[%emt 0:00:28]} 6. c3 {[%emt 0:00:07]} Ba5 {[%emt 0:00:12]} 7. O-O {[%emt 0:01:30]} Nxe4 {[%emt 0:02:35]} 8. Bxf7+ {[%emt 0:00:10]} Rxf7 {[%emt 0:00:38]} 9. Nxf7 {[%emt 0:00:07]} Kxf7 {[%emt 0:00:07]} 10. Qh5+ {[%emt 0:00:06]} g6 {[%emt 0:00:33]} 11. Qxa5 {[%emt 0:00:15]} d5 {[%emt 0:00:24]} 12. Bf4 {[%emt 0:00:34]} b6 {[%emt 0:00:31]} 13. Qa4 {[%emt 0:00:42]} Bf5 {[%emt 0:00:45]} 14. Nd2 {[%emt 0:00:47]} Ng5 {[%emt 0:01:19]} 15. Rfe1 {[%emt 0:00:40]} Nd7 {[%emt 0:00:43]} 16. Qc6 {[%emt 0:00:36]} Rc8 {[%emt 0:01:24]} 17. Qxd5+ {[%emt 0:00:40]} Kg7 {[%emt 0:00:55]} 18. g4 {[%emt 0:00:47]} Nh3+ {[%emt 0:01:42]} 19. Kh1 {[%emt 0:00:05]} Nxf4 {[%emt 0:00:05]} 20. Qf3 {[%emt 0:00:05]} Nd3 {[%emt 0:00:05]} 21. gxf5 {[%emt 0:00:05]} Nxe1 {[%emt 0:00:05]} 22. Rxe1 {[%emt 0:00:05]} Rb8 {[%emt 0:00:05]} 23. Re6 {[%emt 0:00:05]} Qg5 {[%emt 0:00:05]} 24. Qe3 {[%emt 0:00:05]} Qxe3 {[%emt 0:00:05]} 25. fxe3 {[%emt 0:00:05]} gxf5 {[%emt 0:00:05]} 26. Re7+ {[%emt 0:00:05]} Kg6 {[%emt 0:00:05]} 27. Rxd7 {[%emt 0:00:05]} Re8 {[%emt 0:00:05]} 28. Nf1 {[%emt 0:00:05]} Rc8 {[%emt 0:00:05]} 29. Kg2 {[%emt 0:00:05]} Kh6 {[%emt 0:00:05]} 30. Ng3 {[%emt 0:00:05]} Kg6 {[%emt 0:00:05]} 31. h4 {[%emt 0:00:05]} h5 {[%emt 0:00:05]} 32. Kf3 {[%emt 0:00:05]} 1-0

[Event "DVM U10 2024"]
[Site "Duesseldorf"]
[Date "2024.12.28"]
[Round "6"]
[White "Nikolic, Luka"]
[Black "Hantke, Florian"]
[Result "1/2-1/2"]
[ECO "D37"]
[WhiteElo "1579"]
[BlackElo "1517"]
[Annotator "NA RC"]
[PlyCount "65"]
[EventDate "2024.12.23"]
[EventType "team-tourn"]
[EventRounds "7"]
[EventCountry "GER"]
[SourceTitle "playchess.com"]
[Source "ChessBase"]
[SourceQuality "1"]
[TimeControl "3300+5"]

1. d4 {[%emt 0:00:01]} d5 {[%emt 0:00:09]} 2. c4 {[%emt 0:00:06]} e6 {[%emt 0:00:02]} 3. Nc3 {[%emt 0:00:11]} Nf6 {[%emt 0:00:06]} 4. Bf4 {[%emt 0:00:10]} c6 {[%emt 0:00:06]} 5. Qc2 {[%emt 0:00:12]} Be7 {[%emt 0:00:34]} 6. Nf3 {[%emt 0:00:17]} O-O {[%emt 0:00:12]} 7. e3 {[%emt 0:00:06]} Re8 {[%emt 0:00:19]} 8. Be2 {[%emt 0:00:16]} Nbd7 {[%emt 0:00:10]} 9. O-O {[%emt 0:00:14]} dxc4 {[%emt 0:00:25]} 10. Bxc4 {[%emt 0:00:15]} b5 {[%emt 0:00:02]} 11. Bxb5 {[%emt 0:01:33]} cxb5 {[%emt 0:00:25]} 12. Nxb5 {[%emt 0:00:06]} Ba6 {[%emt 0:00:24]} 13. Nc7 {[%emt 0:01:11]} Bxf1 {[%emt 0:07:19]} 14. Nxe8 {[%emt 0:02:20]} Qxe8 {[%emt 0:00:45]} 15. Rxf1 {[%emt 0:00:00]} Rc8 {[%emt 0:03:27]} 16. Qa4 {[%emt 0:02:38]} Ra8 {[%emt 0:01:48]} 17. Rc1 {[%emt 0:00:42]} Nh5 {[%emt 0:01:33]} 18. Rc7 {[%emt 0:02:14]} Rc8 {[%emt 0:05:58]} 19. Qxa7 {[%emt 0:05:01]} Nxf4 {[%emt 0:00:36]} 20. exf4 {[%emt 0:01:42]} Bd6 {[%emt 0:00:25]} 21. Rxc8 {[%emt 0:01:18]} Qxc8 {[%emt 0:00:03]} 22. g3 {[%emt 0:00:51]} Qc6 {[%emt 0:00:58]} 23. Ne5 {[%emt 0:02:37]} Bxe5 {[%emt 0:02:49]} 24. fxe5 {[%emt 0:00:30]} Qc1+ {[%emt 0:00:05]} 25. Kg2 {[%emt 0:00:11]} Qc6+ {[%emt 0:00:04]} 26. Kh3 {[%emt 0:00:40]} Nf8 {[%emt 0:01:59]} 27. Qc5 {[%emt 0:00:48]} Qf3 {[%emt 0:00:21]} 28. b4 {[%emt 0:00:14]} h6 {[%emt 0:00:10]} 29. Qc1 {[%emt 0:00:23]} Qxf2 {[%emt 0:00:14]} 30. b5 {[%emt 0:01:46]} Qxd4 {[%emt 0:00:47]} 31. Qf4 {[%emt 0:01:32]} Qc5 {[%emt 0:02:13]} 32. a4 {[%emt 0:00:08]} Ng6 {[%emt 0:00:08]} 33. Qe4 {[%emt 0:01:19]} 1/2-1/2

[Event "DVM U10 2024"]
[Site "Duesseldorf"]
[Date "2024.12.28"]
[Round "6"]
[White "Oezkurt, Alper"]
[Black "Schmidt, Jan"]
[Result "1-0"]
[ECO "B13"]
[WhiteElo "1533"]
[BlackElo "1688"]
[Annotator "NA RC"]
[PlyCount "75"]
[EventDate "2024.12.23"]
[EventType "team-tourn"]
[EventRounds "7"]
[EventCountry "GER"]
[SourceTitle "playchess.com"]
[Source "ChessBase"]
[SourceQuality "1"]
[TimeControl "3300+5"]

1. e4 {[%emt 0:00:03]} c6 {[%emt 0:00:05]} 2. d4 {[%emt 0:00:07]} d5 {[%emt 0:00:05]} 3. exd5 {[%emt 0:00:06]} cxd5 {[%emt 0:00:04]} 4. Bd3 {[%emt 0:00:09]} Nf6 {[%emt 0:00:07]} 5. Nf3 {[%emt 0:00:05]} Bg4 {[%emt 0:00:07]} 6. h3 {[%emt 0:00:07]} Bh5 {[%emt 0:00:03]} 7. Bf4 {[%emt 0:00:10]} Nc6 {[%emt 0:00:13]} 8. c3 {[%emt 0:00:04]} e6 {[%emt 0:00:04]} 9. Nbd2 {[%emt 0:00:04]} Bd6 {[%emt 0:00:05]} 10. Bxd6 {[%emt 0:00:10]} Qxd6 {[%emt 0:00:05]} 11. Qc2 {[%emt 0:00:05]} Rc8 {[%emt 0:00:25]} 12. O-O {[%emt 0:00:09]} Nb4 {[%emt 0:00:12]} 13. Qb1 {[%emt 0:00:11]} Nxd3 {[%emt 0:00:15]} 14. Qxd3 {[%emt 0:00:07]} O-O {[%emt 0:00:20]} 15. Qe2 {[%emt 0:00:10]} Rb8 {[%emt 0:00:54]} 16. Qe5 {[%emt 0:00:17]} Qc6 {[%emt 0:00:42]} 17. Qe3 {[%emt 0:00:30]} Rfc8 {[%emt 0:00:46]} 18. Ne5 {[%emt 0:00:32]} Qe8 {[%emt 0:00:46]} 19. Ndf3 {[%emt 0:00:26]} a5 {[%emt 0:08:18]} 20. a4 {[%emt 0:02:02]} b5 {[%emt 0:00:22]} 21. axb5 {[%emt 0:01:05]} Rxb5 {[%emt 0:02:24]} 22. Qd2 {[%emt 0:00:32]} Rcb8 {[%emt 0:00:24]} 23. Rab1 {[%emt 0:00:46]} Ne4 {[%emt 0:00:49]} 24. Qc2 {[%emt 0:00:13]} Qc8 {[%emt 0:05:58]} 25. Nd2 {[%emt 0:04:05]} Nxd2 {[%emt 0:02:12]} 26. Qxd2 {[%emt 0:00:05]} f6 {[%emt 0:02:08]} 27. Nd3 {[%emt 0:00:50]} Bg6 {[%emt 0:01:46]} 28. Rfe1 {[%emt 0:00:50]} Bxd3 {[%emt 0:01:54]} 29. Qxd3 {[%emt 0:00:12]} Rxb2 {[%emt 0:00:17]} 30. Rxb2 {[%emt 0:00:37]} Rxb2 {[%emt 0:00:44]} 31. Ra1 {[%emt 0:00:14]} Qb8 {[%emt 0:01:39]} 32. g3 {[%emt 0:10:06]} Qb6 {[%emt 0:01:05]} 33. c4 {[%emt 0:01:31]} Qa6 {[%emt 0:07:14]} 34. Qc3 {[%emt 0:03:06]} Rb4 {[%emt 0:00:15]} 35. Qxb4 {[%emt 0:00:12]} axb4 {[%emt 0:00:20]} 36. Rxa6 {[%emt 0:00:07]} dxc4 {[%emt 0:00:16]} 37. Rb6 {[%emt 0:01:19]} b3 {[%emt 0:00:16]} 38. Rb4 {[%emt 0:00:04]} 1-0

[Event "DVM U10 2024"]
[Site "Duesseldorf"]
[Date "2024.12.28"]
[Round "6"]
[White "Sriram, Yashasri"]
[Black "Luible, Sebastian"]
[Result "0-1"]
[ECO "C42"]
[WhiteElo "1520"]
[BlackElo "1104"]
[Annotator "NA RC"]
[PlyCount "76"]
[EventDate "2024.12.23"]
[EventType "team-tourn"]
[EventRounds "7"]
[EventCountry "GER"]
[SourceTitle "playchess.com"]
[Source "ChessBase"]
[SourceQuality "1"]
[TimeControl "3300+5"]

1. e4 {[%emt 0:01:16]} e5 {[%emt 0:00:03]} 2. Nf3 {[%emt 0:00:14]} Nf6 {[%emt 0:00:04]} 3. Nxe5 {[%emt 0:00:25]} d6 {[%emt 0:00:09]} 4. Nf3 {[%emt 0:00:06]} Nxe4 {[%emt 0:00:05]} 5. d4 {[%emt 0:01:07]} d5 {[%emt 0:00:10]} 6. Bd3 {[%emt 0:00:27]} Bg4 {[%emt 0:00:17]} 7. h3 {[%emt 0:00:27]} Bh5 {[%emt 0:00:04]} 8. Nbd2 {[%emt 0:00:43]} Qe7 {[%emt 0:02:55]} 9. O-O {[%emt 0:00:58]} Nc6 {[%emt 0:00:43]} 10. c3 {[%emt 0:00:13]} O-O-O {[%emt 0:01:12]} 11. Re1 {[%emt 0:00:22]} f5 {[%emt 0:00:08]} 12. a4 {[%emt 0:00:59]} g5 {[%emt 0:00:59]} 13. Nxe4 {[%emt 0:00:38]} fxe4 {[%emt 0:00:17]} 14. Bxg5 {[%emt 0:00:14]} Qg7 {[%emt 0:05:03]} 15. Bxd8 {[%emt 0:00:40]} Bxf3 {[%emt 0:00:10]} 16. Qxf3 {[%emt 0:01:21]} exf3 {[%emt 0:00:20]} 17. g4 {[%emt 0:00:25]} Nxd8 {[%emt 0:00:49]} 18. Bf5+ {[%emt 0:00:20]} Kb8 {[%emt 0:00:13]} 19. Re8 {[%emt 0:00:25]} Be7 {[%emt 0:00:11]} 20. Rxh8 {[%emt 0:00:12]} Qxh8 {[%emt 0:00:07]} 21. Re1 {[%emt 0:00:08]} Bf6 {[%emt 0:02:34]} 22. Re3 {[%emt 0:00:17]} h5 {[%emt 0:01:27]} 23. Rxf3 {[%emt 0:00:17]} hxg4 {[%emt 0:00:26]} 24. Bxg4 {[%emt 0:00:17]} a6 {[%emt 0:00:18]} 25. b4 {[%emt 0:00:13]} Be7 {[%emt 0:01:48]} 26. Re3 {[%emt 0:00:15]} Bf6 {[%emt 0:01:47]} 27. b5 {[%emt 0:00:46]} axb5 {[%emt 0:00:35]} 28. axb5 {[%emt 0:00:09]} Qh7 {[%emt 0:01:58]} 29. Kh2 {[%emt 0:00:16]} Be7 {[%emt 0:01:33]} 30. Be6 {[%emt 0:00:27]} Bd6+ {[%emt 0:00:38]} 31. Kg1 {[%emt 0:00:37]} Nxe6 {[%emt 0:00:50]} 32. Rxe6 {[%emt 0:00:13]} Qg8+ {[%emt 0:00:16]} 33. Kf1 {[%emt 0:00:16]} Qxe6 {[%emt 0:00:07]} 34. h4 {[%emt 0:00:00]} Qh3+ {[%emt 0:00:05]} 35. Ke2 {[%emt 0:01:29]} Qxh4 {[%emt 0:00:10]} 36. f3 {[%emt 0:00:03]} Bf4 {[%emt 0:00:16]} 37. c4 {[%emt 0:00:11]} Qh2+ {[%emt 0:01:24]} 38. Kd3 {[%emt 0:00:10]} Qd2# {[%emt 0:00:24]} 0-1

[Event "DVM U10 2024"]
[Site "Duesseldorf"]
[Date "2024.12.28"]
[Round "6"]
[White "Liu, Yichen"]
[Black "Lüttgen, Jona"]
[Result "0-1"]
[ECO "C45"]
[WhiteElo "1500"]
[BlackElo "1412"]
[Annotator "NA RC"]
[PlyCount "88"]
[EventDate "2024.12.23"]
[EventType "team-tourn"]
[EventRounds "7"]
[EventCountry "GER"]
[SourceTitle "playchess.com"]
[Source "ChessBase"]
[SourceQuality "1"]
[TimeControl "3300+5"]

1. e4 {[%emt 0:00:04]} e5 {[%emt 0:00:04]} 2. Nf3 {[%emt 0:00:15]} Nc6 {[%emt 0:00:06]} 3. d4 {[%emt 0:00:14]} exd4 {[%emt 0:00:04]} 4. Nxd4 {[%emt 0:00:09]} Bc5 {[%emt 0:00:07]} 5. Be3 {[%emt 0:00:10]} Qf6 {[%emt 0:02:49]} 6. c3 {[%emt 0:00:12]} Nge7 {[%emt 0:00:33]} 7. Bb5 {[%emt 0:00:13]} Nxd4 {[%emt 0:00:42]} 8. Bxd4 {[%emt 0:00:15]} Bxd4 {[%emt 0:00:13]} 9. Qxd4 {[%emt 0:00:10]} Qxd4 {[%emt 0:00:25]} 10. cxd4 {[%emt 0:00:09]} c6 {[%emt 0:00:06]} 11. Bc4 {[%emt 0:00:21]} d5 {[%emt 0:00:08]} 12. exd5 {[%emt 0:00:09]} cxd5 {[%emt 0:00:08]} 13. Bb5+ {[%emt 0:00:14]} Bd7 {[%emt 0:00:10]} 14. Bxd7+ {[%emt 0:00:09]} Kxd7 {[%emt 0:00:05]} 15. Nc3 {[%emt 0:00:09]} Rac8 {[%emt 0:00:17]} 16. O-O {[%emt 0:00:11]} Rc4 {[%emt 0:00:27]} 17. Rad1 {[%emt 0:00:23]} Rhc8 {[%emt 0:00:38]} 18. Rd3 {[%emt 0:00:26]} R8c6 {[%emt 0:01:19]} 19. Re1 {[%emt 0:00:50]} Re6 {[%emt 0:02:08]} 20. Rxe6 {[%emt 0:00:28]} fxe6 {[%emt 0:00:20]} 21. h3 {[%emt 0:00:40]} Nf5 {[%emt 0:01:24]} 22. Kf1 {[%emt 0:01:33]} Rxd4 {[%emt 0:01:36]} 23. Rxd4 {[%emt 0:00:17]} Nxd4 {[%emt 0:00:09]} 24. Ne2 {[%emt 0:01:11]} Nxe2 {[%emt 0:00:13]} 25. Kxe2 {[%emt 0:00:07]} Kd6 {[%emt 0:00:27]} 26. Kd3 {[%emt 0:00:19]} e5 {[%emt 0:00:40]} 27. b4 {[%emt 0:00:10]} e4+ {[%emt 0:01:09]} 28. Kd4 {[%emt 0:00:09]} Ke6 {[%emt 0:01:17]} 29. a3 {[%emt 0:00:40]} b6 {[%emt 0:01:16]} 30. a4 {[%emt 0:00:16]} a5 {[%emt 0:03:05]} 31. bxa5 {[%emt 0:00:58]} bxa5 {[%emt 0:00:15]} 32. h4 {[%emt 0:01:53]} h5 {[%emt 0:00:57]} 33. f3 {[%emt 0:01:14]} Kf5 {[%emt 0:01:35]} 34. Kxd5 {[%emt 0:00:52]} e3 {[%emt 0:00:14]} 35. Kc5 {[%emt 0:00:39]} e2 {[%emt 0:00:08]} 36. Kb5 {[%emt 0:00:17]} e1=Q {[%emt 0:00:08]} 37. Kc4 {[%emt 0:01:49]} Qb4+ {[%emt 0:00:16]} 38. Kd3 {[%emt 0:00:09]} Qxa4 {[%emt 0:00:55]} 39. Kc3 {[%emt 0:00:53]} Qb4+ {[%emt 0:00:00]} 40. Kc2 {[%emt 0:00:17]} a4 {[%emt 0:00:00]} 41. Kd3 {[%emt 0:00:08]} a3 {[%emt 0:00:00]} 42. Kc2 {[%emt 0:00:06]} a2 {[%emt 0:00:00]} 43. Kd3 {[%emt 0:00:05]} a1=Q {[%emt 0:00:31]} 44. Kc2 {[%emt 0:00:17]} Qbc3# {[%emt 0:00:16]} 0-1

[Event "DVM U10 2024"]
[Site "Duesseldorf"]
[Date "2024.12.28"]
[Round "6"]
[White "Breaz, Albert"]
[Black "Dombert, Johannes"]
[Result "0-1"]
[ECO "C47"]
[WhiteElo "1494"]
[BlackElo "1611"]
[Annotator "NA RC"]
[PlyCount "66"]
[EventDate "2024.12.23"]
[EventType "team-tourn"]
[EventRounds "7"]
[EventCountry "GER"]
[SourceTitle "playchess.com"]
[Source "ChessBase"]
[SourceQuality "1"]
[TimeControl "3300+5"]

1. e4 {[%emt 0:00:01]} e5 {[%emt 0:00:07]} 2. Nf3 {[%emt 0:00:04]} Nf6 {[%emt 0:00:05]} 3. Nc3 {[%emt 0:00:06]} Nc6 {[%emt 0:00:05]} 4. d4 {[%emt 0:00:28]} exd4 {[%emt 0:00:15]} 5. Nxd4 {[%emt 0:00:13]} Bb4 {[%emt 0:00:04]} 6. Bg5 {[%emt 0:02:41]} h6 {[%emt 0:00:51]} 7. Bh4 {[%emt 0:00:44]} g5 {[%emt 0:01:00]} 8. Bg3 {[%emt 0:00:21]} Nxe4 {[%emt 0:00:13]} 9. Ndb5 {[%emt 0:03:02]} Nxc3 {[%emt 0:05:45]} 10. bxc3 {[%emt 0:01:29]} Ba5 {[%emt 0:01:36]} 11. Qe2+ {[%emt 0:00:32]} Kf8 {[%emt 0:00:41]} 12. Qf3 {[%emt 0:01:35]} a6 {[%emt 0:01:05]} 13. Bc4 {[%emt 0:00:26]} Qe7+ {[%emt 0:00:39]} 14. Kd1 {[%emt 0:00:06]} axb5 {[%emt 0:01:04]} 15. Re1 {[%emt 0:00:28]} bxc4 {[%emt 0:00:17]} 16. Rxe7 {[%emt 0:00:21]} Nxe7 {[%emt 0:01:06]} 17. Qf6 {[%emt 0:00:16]} Rh7 {[%emt 0:01:32]} 18. f4 {[%emt 0:02:26]} Nd5 {[%emt 0:00:59]} 19. Qd8+ {[%emt 0:02:42]} Kg7 {[%emt 0:00:10]} 20. fxg5 {[%emt 0:00:15]} Nxc3+ {[%emt 0:00:41]} 21. Ke1 {[%emt 0:00:42]} Ne4+ {[%emt 0:00:46]} 22. Kd1 {[%emt 0:01:01]} hxg5 {[%emt 0:01:52]} 23. Bxc7 {[%emt 0:03:01]} Bxc7 {[%emt 0:01:28]} 24. Qxc7 {[%emt 0:00:10]} d5 {[%emt 0:00:24]} 25. Qe5+ {[%emt 0:00:08]} Kg6 {[%emt 0:00:14]} 26. Ke1 {[%emt 0:02:55]} Be6 {[%emt 0:01:18]} 27. h3 {[%emt 0:05:17]} Rhh8 {[%emt 0:01:20]} 28. Rb1 {[%emt 0:01:11]} Rhe8 {[%emt 0:02:24]} 29. Rxb7 {[%emt 0:02:39]} Bxh3 {[%emt 0:05:06]} 30. Rb6+ {[%emt 0:00:30]} f6 {[%emt 0:00:22]} 31. Qd4 {[%emt 0:00:59]} Bxg2 {[%emt 0:01:16]} 32. Qg1 {[%emt 0:04:39]} Bf3 {[%emt 0:01:23]} 33. Rc6 {[%emt 0:00:50]} Rxa2 {[%emt 0:00:29]} 0-1

[Event "DVM U10 2024"]
[Site "Duesseldorf"]
[Date "2024.12.28"]
[Round "6"]
[White "Bienbeck, Matthis"]
[Black "Ni, Wilhelm Zeyin"]
[Result "1-0"]
[ECO "B00"]
[WhiteElo "1490"]
[BlackElo "1611"]
[Annotator "NA RC"]
[PlyCount "83"]
[EventDate "2024.12.23"]
[EventType "team-tourn"]
[EventRounds "7"]
[EventCountry "GER"]
[SourceTitle "playchess.com"]
[Source "ChessBase"]
[SourceQuality "1"]
[TimeControl "3300+5"]

1. e4 {[%emt 0:00:01]} Nc6 {[%emt 0:00:07]} 2. d4 {[%emt 0:00:09]} d5 {[%emt 0:00:22]} 3. e5 {[%emt 0:00:11]} Bf5 {[%emt 0:01:14]} 4. Nf3 {[%emt 0:00:26]} e6 {[%emt 0:00:18]} 5. Bd3 {[%emt 0:01:27]} Bxd3 {[%emt 0:00:24]} 6. Qxd3 {[%emt 0:00:10]} Nge7 {[%emt 0:01:41]} 7. c3 {[%emt 0:00:31]} g6 {[%emt 0:00:25]} 8. Nbd2 {[%emt 0:01:37]} Bg7 {[%emt 0:00:19]} 9. Nf1 {[%emt 0:00:50]} O-O {[%emt 0:00:32]} 10. Ne3 {[%emt 0:00:46]} f6 {[%emt 0:02:34]} 11. exf6 {[%emt 0:00:59]} Bxf6 {[%emt 0:00:13]} 12. Ng4 {[%emt 0:00:00]} Bg7 {[%emt 0:00:06]} 13. Bg5 {[%emt 0:01:18]} Qd6 {[%emt 0:00:52]} 14. O-O-O {[%emt 0:01:37]} Nf5 {[%emt 0:01:21]} 15. Qd2 {[%emt 0:00:59]} a5 {[%emt 0:00:35]} 16. Bf4 {[%emt 0:00:36]} Qe7 {[%emt 0:00:20]} 17. Rhe1 {[%emt 0:00:44]} b5 {[%emt 0:03:30]} 18. Kc2 {[%emt 0:06:36]} b4 {[%emt 0:01:47]} 19. Bh6 {[%emt 0:00:40]} Rfb8 {[%emt 0:00:58]} 20. Bxg7 {[%emt 0:01:37]} Kxg7 {[%emt 0:00:09]} 21. Ng5 {[%emt 0:01:26]} Nd8 {[%emt 0:01:17]} 22. Qf4 {[%emt 0:00:58]} bxc3 {[%emt 0:00:47]} 23. Qe5+ {[%emt 0:00:18]} Kg8 {[%emt 0:00:31]} 24. Nf6+ {[%emt 0:00:21]} Kh8 {[%emt 0:01:21]} 25. Nxd5+ {[%emt 0:01:13]} Qg7 {[%emt 0:00:12]} 26. Qxg7+ {[%emt 0:01:02]} Kxg7 {[%emt 0:00:07]} 27. Nxc3 {[%emt 0:00:08]} Ra6 {[%emt 0:00:43]} 28. Nf3 {[%emt 0:02:59]} Rb4 {[%emt 0:01:07]} 29. a3 {[%emt 0:00:52]} Rbb6 {[%emt 0:00:45]} 30. d5 {[%emt 0:01:16]} exd5 {[%emt 0:03:13]} 31. Rxd5 {[%emt 0:00:12]} Nf7 {[%emt 0:00:18]} 32. Rd7 {[%emt 0:00:34]} Rc6 {[%emt 0:01:16]} 33. Ne5 {[%emt 0:00:34]} Rf6 {[%emt 0:00:20]} 34. Nxf7 {[%emt 0:01:58]} Rxf7 {[%emt 0:00:07]} 35. Red1 {[%emt 0:01:08]} Rd6 {[%emt 0:01:01]} 36. Rxf7+ {[%emt 0:00:18]} Kxf7 {[%emt 0:00:32]} 37. Rxd6 {[%emt 0:00:12]} Nxd6 {[%emt 0:00:13]} 38. Kd3 {[%emt 0:00:13]} c6 {[%emt 0:00:59]} 39. Ne4 {[%emt 0:00:32]} Nxe4 {[%emt 0:00:49]} 40. Kxe4 {[%emt 0:00:11]} Ke6 {[%emt 0:00:03]} 41. b4 {[%emt 0:00:07]} a4 {[%emt 0:00:10]} 42. Kd4 {[%emt 0:00:20]} 1-0